fUST/lending_fUST_20260118
["ID","MTS","AMOUNT","RATE_DAILY","PERIOD"]
[402429488,1768675855874,-500.0,0.00016986,3]
[402429490,1768675855884,-500.0,0.00016986,3]
[402429492,1768675855893,-500.0,0.00016986,3]
[402429494,1768675855903,-500.0,0.00016986,3]
[402429496,1768675855913,-500.0,0.00016986,3]
[402429498,1768675855922,-1352.2,0.00016986,3]
[402429500,1768675855930,-500.0,0.00016986,3]
[402429502,1768675855940,-500.0,0.00016986,3]
[402429504,1768675855949,-500.0,0.00016986,3]
[402429506,1768675855958,-626.58,0.00016986,3]
[402429508,1768675855967,-500.0,0.00016986,3]
[402429510,1768675855976,-1215.54,0.00016986,3]
[402429512,1768675855986,-500.0,0.00016986,3]
[402429514,1768675855995,-500.0,0.00016986,3]
[402429516,1768675856005,-537.14,0.00016986,3]
[402429518,1768675856013,-870.79,0.00016986,3]
[402429520,1768675856023,-500.0,0.00016986,2]
[402429522,1768675856032,-506.03,0.00016986,3]
[402429524,1768675856041,-519.62,0.00016986,3]
[402429526,1768675856051,-510.42,0.00016986,3]
[402429528,1768675856061,-500.0,0.00016986,2]
[402429530,1768675856070,-500.0,0.00016986,3]
[402429531,1768675856080,-500.0,0.00016986,3]
[402429534,1768675856090,-538.55531083,0.00016986,3]
[402429535,1768675856100,-478.36647413,0.00016986,3]
[402429538,1768675856109,-500.0,0.00016986,3]
[402429539,1768675856118,-500.0,0.00016986,3]
[402429541,1768675856127,-500.0,0.00016986,3]
[402429543,1768675856136,-502.82,0.00016986,3]
[402429545,1768675856148,-500.0,0.00016986,3]
[402429547,1768675856157,-808.14,0.00016986,3]
[402429549,1768675856167,-500.0,0.00016986,3]
[402429551,1768675856177,-500.0,0.00016986,3]
[402429553,1768675856186,-500.0,0.00016986,3]
[402429555,1768675856196,-500.0,0.00016986,3]
[402429557,1768675856205,-1374.8,0.00016986,3]
[402429559,1768675856215,-724.63,0.00016986,3]
[402429561,1768675856224,-500.0,0.00016986,3]
[402429563,1768675856233,-1054.46,0.00016986,3]
[402429565,1768675856242,-500.0,0.00016986,3]
[402429567,1768675856252,-154.03719813,0.00016986,3]
[402429569,1768675856261,-500.0,0.00016986,3]
[402429571,1768675856271,-500.0,0.00016986,3]
[402429573,1768675856280,-500.0,0.00016986,3]
[402429574,1768675856289,-737.54,0.00016986,3]
[402429576,1768675856298,-500.0,0.00016986,3]
[402429578,1768675856308,-500.0,0.00016986,3]
[402429580,1768675856318,-500.0,0.00016986,3]
[402429582,1768675856327,-500.0,0.00016986,3]
[402429584,1768675856337,-500.0,0.00016986,3]
[402429586,1768675856346,-952.61,0.00016986,3]
[402429588,1768675856355,-500.0,0.00016986,3]
[402429590,1768675856365,-500.0,0.00016986,3]
[402429592,1768675856374,-503.62,0.00016986,3]
[402429594,1768675856383,-500.0,0.00016986,3]
[402429596,1768675856393,-530.80700199,0.00016986,3]
[402429598,1768675856402,-500.0,0.00016986,3]
[402429600,1768675856411,-979.67,0.00016986,3]
[402429602,1768675856420,-719.44,0.00016986,3]
[402429604,1768675856429,-932.18,0.00016986,3]
[402429606,1768675856438,-500.0,0.00016986,3]
[402429608,1768675856448,-500.0,0.00016986,3]
[402429610,1768675856457,-982.12,0.00016986,3]
[402429612,1768675856466,-500.0,0.00016986,3]
[402429614,1768675856475,-915.97,0.00016986,3]
[402429616,1768675856485,-514.33,0.00016986,3]
[402429618,1768675856495,-500.0,0.00016986,3]
[402429620,1768675856504,-500.0,0.00016986,3]
[402429622,1768675856513,-500.0,0.00016986,3]
[402429624,1768675856523,-822.86,0.00016986,3]
[402429626,1768675856532,-500.0,0.00016986,3]
[402429628,1768675856541,-1158.19,0.00016986,3]
[402429630,1768675856550,-500.0,0.00016986,3]
[402429632,1768675856559,-183.181997,0.00016986,2]
[402429634,1768675856568,-500.0,0.00016986,3]
[402429636,1768675856576,-183.181997,0.00016986,2]
[402429638,1768675856585,-183.181997,0.00016986,2]
[402429640,1768675856594,-183.181997,0.00016986,2]
[402429642,1768675856603,-500.0,0.00016986,3]
[402429643,1768675856612,-500.0,0.00016986,3]
[402429645,1768675856626,-500.0,0.00016986,3]
[402429647,1768675856636,-500.0,0.00016986,3]
[402429649,1768675856645,-1545.23,0.00016986,3]
[402429651,1768675856655,-500.0,0.00016986,3]
[402429653,1768675856666,-1920.93,0.00016986,3]
[402429655,1768675856675,-536.54,0.00016986,3]
[402429657,1768675856685,-500.0,0.00016986,3]
[402429659,1768675856694,-1564.12,0.00016986,3]
[402429661,1768675856704,-500.0,0.00016986,3]
[402429663,1768675856712,-1132.13,0.00016986,3]
[402429665,1768675856722,-500.0,0.00016986,3]
[402429667,1768675856731,-255.78047731,0.00016986,3]
[402429669,1768675856740,-500.0,0.00016986,3]
[402429671,1768675856750,-652.64,0.00016986,3]
[402429673,1768675856760,-500.0,0.00016986,3]
[402429675,1768675856769,-1416.4,0.00016986,3]
[402429677,1768675856778,-500.0,0.00016986,3]
[402429679,1768675856788,-500.0,0.00016986,3]
[402429681,1768675856798,-500.0,0.00016986,3]
[402429683,1768675856808,-1075.4,0.00016986,3]
[402429685,1768675856817,-500.0,0.00016986,3]
[402429687,1768675856827,-500.0,0.00016986,3]
[402429689,1768675856837,-1096.32,0.00016986,3]
[402429691,1768675856847,-500.0,0.00016986,3]
[402429693,1768675856856,-500.0,0.00016986,3]
[402429695,1768675856866,-752.51,0.00016986,3]
[402429697,1768675856875,-511.95572068,0.00016986,3]
[402429699,1768675856885,-500.0,0.00016986,3]
[402429701,1768675856895,-375.27196908,0.00016986,3]
[402429703,1768675856904,-500.0,0.00016986,3]
[402429705,1768675856913,-338.02289746,0.00016986,3]
[402429707,1768675856923,-500.0,0.00016986,3]
[402429709,1768675856932,-500.0,0.00016986,3]
[402429711,1768675856942,-500.0,0.00016986,3]
[402429713,1768675856951,-657.67,0.00016986,3]
[402429715,1768675856961,-500.0,0.00016986,3]
[402429717,1768675856970,-500.0,0.00016986,3]
[402429719,1768675856979,-500.0,0.00016986,3]
[402429721,1768675856989,-784.82,0.00016986,3]
[402429723,1768675856998,-500.0,0.00016986,3]
[402429725,1768675857009,-625.18,0.00016986,3]
[402429727,1768675857018,-500.0,0.00016986,3]
[402429729,1768675857028,-500.0,0.00016986,3]
[402429731,1768675857038,-1000.0,0.00016986,2]
[402429733,1768675857048,-500.0,0.00016986,3]
[402429735,1768675857057,-1239.89,0.00016986,3]
[402429737,1768675857066,-500.0,0.00016986,3]
[402429739,1768675857075,-1672.89,0.00016986,3]
[402429741,1768675857085,-652.44,0.00016986,3]
[402429743,1768675857094,-500.0,0.00016986,3]
[402429745,1768675857104,-1667.11,0.00016986,3]
[402429747,1768675857114,-620.35,0.00016986,3]
[402429749,1768675857124,-1466.89,0.00016986,3]
[402429751,1768675857134,-500.0,0.00016986,3]
[402429753,1768675857143,-500.0,0.00016986,3]
[402429755,1768675857153,-500.0,0.00016986,3]
[402429757,1768675857163,-500.0,0.00016986,3]
[402429759,1768675857173,-500.0,0.00016986,3]
[402429761,1768675857182,-267.46419582,0.00016986,3]
[402429763,1768675857192,-532.65564852,0.00016986,2]
[402429765,1768675857202,-1430.32,0.00016986,3]
[402429767,1768675857211,-500.0,0.00016986,3]
[402429769,1768675857221,-500.0,0.00016986,3]
[402429771,1768675857231,-500.0,0.00016986,3]
[402429773,1768675857241,-500.0,0.00016986,3]
[402429775,1768675857251,-500.0,0.00016986,3]
[402429777,1768675857261,-500.0,0.00016986,3]
[402429780,1768675857271,-500.0,0.00016986,3]
[402429782,1768675857281,-500.0,0.00016986,3]
[402429783,1768675857291,-500.0,0.00016986,3]
[402429786,1768675857301,-2427.21,0.00016986,3]
[402429788,1768675857311,-843.85,0.00016986,3]
[402429790,1768675857321,-500.0,0.00016986,3]
[402429792,1768675857330,-2175.59,0.00016986,3]
[402429794,1768675857339,-584.46,0.00016986,3]
[402429796,1768675857349,-500.0,0.00016986,3]
[402429798,1768675857358,-500.0,0.00016986,3]
[402429800,1768675857368,-500.0,0.00016986,3]
[402429802,1768675857377,-500.0,0.00016986,3]
[402429803,1768675857386,-500.0,0.00016986,3]
[402429806,1768675857396,-500.0,0.00016986,3]
[402429808,1768675857407,-500.0,0.00016986,3]
[402429810,1768675857419,-753.6,0.00016986,3]
[402429812,1768675857429,-1210.67,0.00016986,3]
[402429813,1768675857438,-155.57377074,0.00016986,3]
[402429816,1768675857448,-500.0,0.00016986,3]
[402429818,1768675857458,-1177.08,0.00016986,3]
[402429820,1768675857467,-500.0,0.00016986,3]
[402429822,1768675857476,-345.54297394,0.00016986,3]
[402429824,1768675857486,-500.0,0.00016986,3]
[402429826,1768675857495,-500.0,0.00016986,3]
[402429828,1768675857504,-733.19,0.00016986,3]
[402429830,1768675857513,-591.87,0.00016986,3]
[402429832,1768675857522,-553.19,0.00016986,3]
[402429834,1768675857532,-500.0,0.00016986,3]
[402429836,1768675857541,-500.0,0.00016986,3]
[402429838,1768675857551,-500.0,0.00016986,3]
[402429840,1768675857560,-500.0,0.00016986,3]
[402429842,1768675857570,-500.0,0.00016986,3]
[402429844,1768675857579,-500.0,0.00016986,3]
[402429846,1768675857588,-500.0,0.00016986,3]
[402429848,1768675857597,-609.57,0.00016986,3]
[402429850,1768675857607,-500.0,0.00016986,3]
[402429852,1768675857617,-779.45,0.00016986,3]
[402429854,1768675857630,-930.42,0.00016986,3]
[402429856,1768675857640,-500.0,0.00016986,3]
[402429858,1768675857649,-978.58,0.00016986,3]
[402429860,1768675857659,-500.0,0.00016986,3]
[402429862,1768675857670,-503.39,0.00016986,3]
[402429864,1768675857679,-500.0,0.00016986,3]
[402429866,1768675857688,-500.0,0.00016986,3]
[402429868,1768675857700,-439.35438374,0.00016986,3]
[402429870,1768675857711,-676.55,0.00016986,3]
[402429872,1768675857721,-500.0,0.00016986,3]
[402429874,1768675857731,-500.0,0.00016986,3]
[402429876,1768675857741,-500.0,0.00016986,3]
[402429878,1768675857750,-1244.98,0.00016986,3]
[402429880,1768675857760,-500.0,0.00016986,3]
[402429882,1768675857769,-1356.45,0.00016986,3]
[402429884,1768675857778,-658.22,0.00016986,3]
[402429886,1768675857788,-500.0,0.00016986,3]
[402429888,1768675857799,-684.41,0.00016986,3]
[402429890,1768675857809,-667.89,0.00016986,3]
[402429892,1768675857820,-500.0,0.00016986,3]
[402429894,1768675857830,-1628.67,0.00016986,3]
[402429896,1768675857839,-500.0,0.00016986,3]
[402429898,1768675857850,-500.0,0.00016986,3]
[402429900,1768675857860,-500.0,0.00016986,3]
[402429902,1768675857869,-1219.0,0.00016986,3]
[402429904,1768675857879,-825.95,0.00016986,3]
[402429906,1768675857890,-937.01,0.00016986,3]
[402429908,1768675857901,-500.0,0.00016986,3]
[402429910,1768675857910,-843.19,0.00016986,3]
[402429912,1768675857920,-500.0,0.00016986,3]
[402429914,1768675857929,-947.02,0.00016986,3]
[402429916,1768675857939,-500.0,0.00016986,3]
[402429918,1768675857949,-933.84,0.00016986,3]
[402429920,1768675857958,-947.02,0.00016986,3]
[402429922,1768675857968,-500.0,0.00016986,3]
[402429924,1768675857977,-500.0,0.00016986,3]
[402429925,1768675857987,-1134.33,0.00016986,3]
[402429926,1768675857996,-500.0,0.00016986,3]
[402429927,1768675858006,-500.0,0.00016986,3]
[402429928,1768675858016,-1667.68,0.00016986,3]
[402429929,1768675858026,-500.0,0.00016986,3]
[402429930,1768675858036,-640.01,0.00016986,3]
[402429931,1768675858045,-500.0,0.00016986,3]
[402429932,1768675858055,-500.0,0.00016986,3]
[402429933,1768675858065,-500.0,0.00016986,3]
[402429934,1768675858075,-761.33,0.00016986,3]
[402429936,1768675858084,-500.0,0.00016986,3]
[402429937,1768675858094,-500.0,0.00016986,3]
[402429939,1768675858104,-500.0,0.00016986,3]
[402429942,1768675858114,-509.91,0.00016986,3]
[402429944,1768675858124,-500.0,0.00016986,3]
[402429946,1768675858133,-500.0,0.00016986,3]
[402429948,1768675858143,-500.0,0.00016986,3]
[402429950,1768675858153,-1711.38,0.00016986,3]
[402429952,1768675858164,-1068.39,0.00016986,3]
[402429954,1768675858174,-560.2982487,0.00016986,3]
[402429956,1768675858185,-500.0,0.00016986,3]
[402429958,1768675858194,-500.0,0.00016986,3]
[402429960,1768675858204,-500.0,0.00016986,3]
[402429962,1768675858213,-536.25086162,0.00016986,3]
[402429964,1768675858223,-500.0,0.00016986,3]
[402429966,1768675858232,-500.0,0.00016986,3]
[402429968,1768675858243,-1264.17,0.00016986,3]
[402429970,1768675858253,-1911.06,0.00016986,3]
[402429972,1768675858263,-731.23,0.00016986,3]
[402429974,1768675858273,-500.0,0.00016986,3]
[402429976,1768675858283,-2552.27,0.00016986,3]
[402429978,1768675858292,-1441.61,0.00016986,3]
[402429980,1768675858303,-1297.14,0.00016986,3]
[402429982,1768675858313,-901.56,0.00016986,3]
[402429984,1768675858322,-762.49,0.00016986,3]
[402429986,1768675858332,-1023.82,0.00016986,3]
[402429989,1768675858342,-500.0,0.00016986,3]
[402429991,1768675858352,-500.0,0.00016986,3]
[402429993,1768675858362,-500.0,0.00016986,3]
[402429995,1768675858372,-500.0,0.00016986,3]
[402429997,1768675858382,-500.0,0.00016986,3]
[402429999,1768675858392,-500.0,0.00016986,3]
[402430023,1768675858584,-808.76,0.00016986,3]
[402430025,1768675858615,-500.0,0.00016986,3]
[402430027,1768675858628,-500.0,0.00016986,3]
[402430029,1768675858637,-500.0,0.00016986,3]
[402430032,1768675858647,-730.43,0.00016986,3]
[402430034,1768675858657,-500.0,0.00016986,3]
[402430036,1768675858666,-917.73,0.00016986,3]
[402430038,1768675858676,-906.34,0.00016986,3]
[402430039,1768675858685,-500.0,0.00016986,3]
[402430042,1768675858695,-569.12,0.00016986,3]
[402430044,1768675858704,-1618.42,0.00016986,3]
[402430046,1768675858714,-500.0,0.00016986,3]
[402430048,1768675858723,-178.3,0.00016986,2]
[402430050,1768675858733,-1752.95,0.00016986,3]
[402430052,1768675858742,-697.63,0.00016986,3]
[402430054,1768675858751,-1011.8,0.00016986,3]
[402430056,1768675858761,-619.55,0.00016986,3]
[402430058,1768675858769,-575.62,0.00016986,3]
[402430060,1768675858779,-795.91,0.00016986,3]
[402430062,1768675858788,-257.29403538,0.00016986,3]
[402430064,1768675858798,-500.0,0.00016986,3]
[402430066,1768675858807,-669.17,0.00016986,3]
[402430068,1768675858816,-500.0,0.00016986,3]
[402430070,1768675858825,-500.0,0.00016986,3]
[402430072,1768675858834,-865.41,0.00016986,3]
[402430074,1768675858842,-500.0,0.00016986,3]
[402430076,1768675858852,-500.0,0.00016986,3]
[402430078,1768675858862,-500.0,0.00016986,3]
[402430080,1768675858871,-500.0,0.00016986,3]
[402430082,1768675858880,-417.85698666,0.00016986,3]
[402430084,1768675858890,-1562.03,0.00016986,3]
[402430086,1768675858899,-500.0,0.00016986,3]
[402430088,1768675858909,-500.0,0.00016986,3]
[402430090,1768675858918,-500.0,0.00016986,3]
[402430092,1768675858928,-598.38,0.00016986,3]
[402430094,1768675858937,-500.0,0.00016986,3]
[402430096,1768675858946,-680.48,0.00016986,3]
[402430098,1768675858955,-1316.96,0.00016986,3]
[402430100,1768675858964,-1646.11,0.00016986,3]
[402430102,1768675858974,-500.0,0.00016986,3]
[402430104,1768675858983,-500.0,0.00016986,3]
[402430106,1768675858993,-500.0,0.00016986,3]
[402430108,1768675859002,-500.0,0.00016986,3]
[402430110,1768675859011,-500.0,0.00016986,3]
[402430112,1768675859021,-500.0,0.00016986,3]
[402430114,1768675859031,-500.0,0.00016986,3]
[402430116,1768675859040,-923.82,0.00016986,3]
[402430118,1768675859050,-539.74,0.00016986,3]
[402430120,1768675859058,-500.0,0.00016986,3]
[402430122,1768675859068,-500.0,0.00016986,3]
[402430124,1768675859077,-500.0,0.00016986,3]
[402430126,1768675859086,-500.0,0.00016986,3]
[402430128,1768675859095,-545.96,0.00016986,3]
[402430130,1768675859105,-539.86,0.00016986,3]
[402430132,1768675859114,-500.0,0.00016986,3]
[402430134,1768675859123,-500.0,0.00016986,3]
[402430136,1768675859132,-500.0,0.00016986,3]
[402430138,1768675859142,-500.0,0.00016986,3]
[402430140,1768675859153,-895.54,0.00016986,3]
[402430142,1768675859162,-500.0,0.00016986,3]
[402430145,1768675859182,-500.0,0.00016986,3]
[402430147,1768675859192,-1249.71,0.00016986,3]
[402430149,1768675859202,-822.61,0.00016986,3]
[402430151,1768675859213,-500.0,0.00016986,3]
[402430153,1768675859223,-545.77,0.00016986,3]
[402430156,1768675859233,-500.0,0.00016986,3]
[402430158,1768675859243,-500.0,0.00016986,3]
[402430160,1768675859253,-1542.26,0.00016986,3]
[402430162,1768675859263,-500.0,0.00016986,3]
[402430164,1768675859275,-500.0,0.00016986,3]
[402430166,1768675859285,-500.0,0.00016986,3]
[402430168,1768675859295,-500.0,0.00016986,3]
[402430171,1768675859305,-739.58,0.00016986,3]
[402430173,1768675859316,-500.0,0.00016986,3]
[402430175,1768675859325,-500.0,0.00016986,3]
[402430177,1768675859336,-500.0,0.00016986,3]
[402430179,1768675859346,-1833.14,0.00016986,3]
[402430181,1768675859356,-1311.65,0.00016986,3]
[402430183,1768675859366,-500.0,0.00016986,3]
[402430185,1768675859377,-500.0,0.00016986,3]
[402430187,1768675859386,-994.35,0.00016986,3]
[402430189,1768675859396,-500.0,0.00016986,3]
[402430191,1768675859406,-1390.83,0.00016986,3]
[402430193,1768675859416,-500.0,0.00016986,3]
[402430195,1768675859426,-500.0,0.00016986,3]
[402430197,1768675859436,-500.0,0.00016986,3]
[402430199,1768675859446,-500.0,0.00016986,3]
[402430202,1768675859456,-1684.0,0.00016986,3]
[402430204,1768675859465,-500.0,0.00016986,3]
[402430206,1768675859475,-500.0,0.00016986,3]
[402430208,1768675859485,-500.0,0.00016986,3]
[402430210,1768675859494,-500.0,0.00016986,3]
[402430212,1768675859504,-500.0,0.00016986,3]
[402430214,1768675859513,-1347.43,0.00016986,3]
[402430216,1768675859523,-500.0,0.00016986,3]
[402430218,1768675859532,-500.0,0.00016986,3]
[402430220,1768675859542,-1185.09,0.00016986,3]
[402430222,1768675859552,-500.0,0.00016986,3]
[402430224,1768675859563,-500.0,0.00016986,3]
[402430226,1768675859572,-500.0,0.00016986,3]
[402430228,1768675859582,-504.66,0.00016986,3]
[402430230,1768675859592,-499.99622273,0.00016986,3]
[402430232,1768675859603,-500.0,0.00016986,3]
[402430234,1768675859613,-500.0,0.00016986,3]
[402430236,1768675859627,-500.0,0.00016986,3]
[402430238,1768675859637,-555.8,0.00016986,3]
[402430240,1768675859646,-500.0,0.00016986,3]
[402430242,1768675859657,-564.15,0.00016986,3]
[402430244,1768675859667,-606.33,0.00016986,3]
[402430247,1768675859676,-500.0,0.00016986,3]
[402430249,1768675859685,-500.0,0.00016986,3]
[402430251,1768675859695,-1200.0,0.00016986,2]
[402430253,1768675859704,-253.82902155,0.00016986,3]
[402430255,1768675859713,-500.0,0.00016986,3]
[402430257,1768675859724,-1439.56,0.00016986,3]
[402430259,1768675859734,-500.0,0.00016986,3]
[402430261,1768675859744,-500.0,0.00016986,3]
[402430263,1768675859753,-892.6,0.00016986,3]
[402430265,1768675859763,-906.85,0.00016986,3]
[402430267,1768675859773,-770.84,0.00016986,3]
[402430269,1768675859782,-826.27,0.00016986,3]
[402430271,1768675859792,-500.0,0.00016986,3]
[402430273,1768675859801,-500.0,0.00016986,3]
[402430275,1768675859810,-500.0,0.00016986,3]
[402430277,1768675859820,-646.32,0.00016986,3]
[402430279,1768675859829,-500.0,0.00016986,3]
[402430281,1768675859839,-1431.76,0.00016986,3]
[402430283,1768675859848,-358.09548366,0.00016986,3]
[402430285,1768675859858,-500.0,0.00016986,3]
[402430288,1768675859867,-1218.15,0.00016986,3]
[402430290,1768675859877,-1873.13,0.00016986,3]
[402430292,1768675859886,-509.04,0.00016986,3]
[402430294,1768675859896,-741.52,0.00016986,3]
[402430296,1768675859905,-500.0,0.00016986,3]
[402430298,1768675859915,-1051.96,0.00016986,3]
[402430300,1768675859924,-500.0,0.00016986,3]
[402430302,1768675859934,-500.0,0.00016986,3]
[402430304,1768675859943,-655.97,0.00016986,3]
[402430306,1768675859953,-596.42,0.00016986,3]
[402430308,1768675859963,-500.0,0.00016986,3]
[402430310,1768675859972,-500.0,0.00016986,3]
[402430312,1768675859981,-1783.16,0.00016986,3]
[402430315,1768675859997,-600.91,0.00016986,3]
[402430317,1768675860007,-763.04,0.00016986,3]
[402430319,1768675860018,-552.3,0.00016986,3]
[402430321,1768675860029,-500.0,0.00016986,3]
[402430323,1768675860040,-547.52,0.00016986,3]
[402430325,1768675860050,-500.0,0.00016986,3]
[402430327,1768675860061,-524.56945144,0.00016986,3]
[402430329,1768675860071,-861.47,0.00016986,3]
[402430331,1768675860082,-500.0,0.00016986,3]
[402430333,1768675860091,-696.99,0.00016986,3]
[402430335,1768675860101,-500.0,0.00016986,3]
[402430337,1768675860111,-680.42,0.00016986,3]
[402430339,1768675860121,-500.0,0.00016986,3]
[402430341,1768675860130,-500.0,0.00016986,3]
[402430343,1768675860140,-500.0,0.00016986,3]
[402430345,1768675860150,-693.13,0.00016986,3]
[402430347,1768675860160,-500.0,0.00016986,3]
[402430349,1768675860170,-500.0,0.00016986,3]
[402430351,1768675860180,-500.0,0.00016986,3]
[402430353,1768675860190,-909.21,0.00016986,3]
[402430355,1768675860200,-1860.62,0.00016986,3]
[402430357,1768675860210,-500.0,0.00016986,3]
[402430359,1768675860219,-596.38925241,0.00016986,3]
[402430361,1768675860229,-880.59,0.00016986,3]
[402430363,1768675860239,-935.44,0.00016986,3]
[402430365,1768675860250,-1236.21,0.00016986,3]
[402430367,1768675860260,-679.86,0.00016986,3]
[402430369,1768675860270,-500.0,0.00016986,3]
[402430371,1768675860280,-822.44,0.00016986,3]
[402430373,1768675860290,-500.0,0.00016986,3]
[402430375,1768675860301,-500.0,0.00016986,3]
[402430377,1768675860310,-500.0,0.00016986,3]
[402430380,1768675860320,-692.88,0.00016986,3]
[402430382,1768675860330,-813.92,0.00016986,3]
[402430384,1768675860340,-1263.08,0.00016986,3]
[402430386,1768675860351,-500.0,0.00016986,3]
[402430388,1768675860361,-500.0,0.00016986,3]
[402430390,1768675860371,-500.0,0.00016986,3]
[402430392,1768675860381,-773.3,0.00016986,3]
[402430394,1768675860391,-1573.93,0.00016986,3]
[402430396,1768675860401,-500.0,0.00016986,3]
[402430398,1768675860411,-500.0,0.00016986,3]
[402430401,1768675860421,-925.02,0.00016986,3]
[402430403,1768675860431,-500.0,0.00016986,3]
[402430405,1768675860440,-500.0,0.00016986,3]
[402430407,1768675860453,-2551.07,0.00016986,3]
[402430408,1768675860463,-500.0,0.00016986,3]
[402430410,1768675860473,-500.0,0.00016986,2]
[402430413,1768675860485,-500.0,0.00016986,3]
[402430415,1768675860497,-500.0,0.00016986,3]
[402430417,1768675860508,-1624.98,0.00016986,3]
[402430419,1768675860517,-500.0,0.00016986,3]
[402430421,1768675860527,-500.0,0.00016986,3]
[402430423,1768675860537,-824.25,0.00016986,3]
[402430424,1768675860546,-500.0,0.00016986,3]
[402430427,1768675860556,-500.0,0.00016986,3]
[402430429,1768675860565,-1074.68,0.00016986,3]
[402430431,1768675860575,-980.22,0.00016986,3]
[402430433,1768675860584,-500.0,0.00016986,3]
[402430435,1768675860594,-500.0,0.00016986,3]
[402430437,1768675860603,-849.33,0.00016986,3]
[402430439,1768675860613,-500.0,0.00016986,3]
[402430441,1768675860627,-540.45385614,0.00016986,3]
[402430443,1768675860638,-500.0,0.00016986,3]
[402430445,1768675860648,-500.0,0.00016986,3]
[402430447,1768675860657,-526.11,0.00016986,3]
[402430449,1768675860667,-982.5,0.00016986,3]
[402430451,1768675860676,-901.72,0.00016986,3]
[402430453,1768675860686,-500.0,0.00016986,3]
[402430455,1768675860696,-500.0,0.00016986,3]
[402430458,1768675860718,-682.73,0.00016986,3]
[402430461,1768675860735,-533.96,0.00016986,3]
[402430464,1768675860753,-2396.6,0.00016986,3]
[402430467,1768675860765,-500.0,0.00016986,3]
[402430469,1768675860780,-1103.35,0.00016986,3]
[402430472,1768675860795,-738.3,0.00016986,3]
[402430475,1768675860810,-702.8,0.00016986,3]
[402430478,1768675860829,-823.13,0.00016986,3]
[402430480,1768675860844,-1173.22,0.00016986,3]
[402430483,1768675860861,-500.0,0.00016986,3]
[402430486,1768675860875,-500.0,0.00016986,3]
[402430488,1768675860892,-500.0,0.00016986,3]
[402430491,1768675860907,-500.0,0.00016986,3]
[402430494,1768675860922,-500.0,0.00016986,3]
[402430496,1768675860937,-7250.78,0.00016986,3]
[402430499,1768675860950,-552.93,0.00016986,3]
[402430501,1768675860961,-1399.24,0.00016986,3]
[402430503,1768675860974,-1148.17,0.00016986,3]
[402430506,1768675860986,-500.0,0.00016986,3]
[402430508,1768675861000,-500.0,0.00016986,3]
[402430510,1768675861013,-3131.96,0.00016986,3]
[402430513,1768675861028,-876.59,0.00016986,3]
[402430516,1768675861043,-580.93,0.00016986,3]
[402430518,1768675861058,-1568.81,0.00016986,3]
[402430521,1768675861069,-500.0,0.00016986,3]
[402430523,1768675861079,-500.0,0.00016986,3]